bitfinex-derivatives/quotes_SOLF0:USTF0_20260204
["timestamp","ask_amount","ask_price","bid_price","bid_amount"]
[1770234840464,9.5461,94.469,94.402,9.5527]
[1770234840664,9.5461,94.469,94.391,3.7942529]
[1770234840865,3.63202334,94.477,94.391,3.7942529]
[1770234841066,9.5464,94.466,94.401,9.5528]
[1770234841262,3.63202334,94.465,94.391,3.7942529]
[1770234841667,13.17852334,94.465,94.406,9.5523]
[1770234841967,3.63202334,94.465,94.406,9.5523]
[1770234842169,3.63202334,94.465,94.345,148.6888]
[1770234842170,3.63202334,94.452,94.369,3.7942529]
[1770234843663,9.5501,94.429,94.37,9.556]
[1770234843970,9.5501,94.429,94.33,407.70505933]
[1770234843971,3.63202334,94.432,94.348,3.7942529]
[1770234844171,3.63202334,94.432,94.357,13.3515529]
[1770234844368,3.63202334,94.432,94.357,3.7942529]
[1770234844568,3.63202334,94.461,94.357,3.7942529]
[1770234844774,3.63202334,94.445,94.371,3.7942529]
[1770234845466,3.63202334,94.418,94.33,411.49931223]
[1770234845666,3.63202334,94.418,94.331,3.7942529]
[1770234846667,9.5531,94.4,94.342,9.5589]
[1770234846970,3.63202334,94.418,94.331,3.7942529]
[1770234847373,9.5532,94.398,94.333,9.5598]
[1770234847569,3.63202334,94.418,94.331,3.7942529]
[1770234847770,9.5532,94.398,94.331,3.7942529]
[1770234848267,13.18732334,94.378,94.31,3.7942529]
[1770234848774,13.18732334,94.378,94.319,9.5611]
[1770234848976,3.63202334,94.378,94.31,3.7942529]
[1770234849372,9.5543,94.388,94.31,3.7942529]
[1770234849574,13.18732334,94.378,94.316,9.5615]
[1770234850665,13.18732334,94.378,94.31,3.7942529]
[1770234850666,9.5562,94.369,94.31,3.7942529]
[1770234850870,3.63202334,94.423,94.321,3.7942529]
[1770234851272,3.63202334,94.395,94.322,9.5609]
[1770234851976,9.555,94.381,94.321,3.7942529]
[1770234852173,3.63202334,94.395,94.321,3.7942529]
[1770234852676,19.0985,94.438,94.263,19.1337]
[1770234852677,3.63202334,94.363,94.299,3.7942529]
[1770234853073,3.63202334,94.409,94.299,3.7942529]
[1770234853776,9.5562,94.369,94.31,9.5621]
[1770234854775,3.63202334,94.368,94.299,3.7942529]
[1770234855075,3.63202334,94.368,94.271,3.7942529]
[1770234855272,3.63202334,94.347,94.281,9.565]
[1770234856673,9.56,94.332,94.271,3.7942529]
[1770234857175,3.63202334,94.396,94.287,3.7942529]
[1770234858276,9.5586,94.346,94.287,3.7942529]
[1770234858473,3.63202334,94.36,94.265,3.7942529]
[1770234858974,3.63202334,94.369,94.265,3.7942529]
[1770234859274,3.63202334,94.369,94.271,3.7942529]
[1770234859474,3.63202334,94.369,94.293,3.7942529]
[1770234860180,3.63202334,94.369,94.273,3.7942529]
[1770234860374,9.5603,94.328,94.273,3.7942529]
[1770234860572,3.63202334,94.342,94.273,3.7942529]
[1770234860976,9.5603,94.328,94.273,3.7942529]
[1770234861388,3.63202334,94.342,94.273,3.7942529]
[1770234861576,9.5594,94.338,94.275,3.7942529]
[1770234861776,3.63202334,94.342,94.275,3.7942529]
[1770234862678,3.63202334,94.342,94.255,3.7942529]
[1770234862882,3.63202334,94.321,94.255,3.7942529]
[1770234863182,3.63202334,94.351,94.261,3.7942529]
[1770234863777,9.5605,94.326,94.261,3.7942529]
[1770234864081,3.91046836,94.325,94.24,3.65062478]
[1770234864585,3.91046836,94.325,94.241,3.65062478]
[1770234864983,13.47106836,94.325,94.26,9.5672]
[1770234865182,13.47106836,94.325,94.26,13.21782478]
[1770234865383,3.91046836,94.325,94.26,13.21782478]
[1770234865581,9.5615,94.317,94.26,13.21782478]
[1770234865782,3.91046836,94.325,94.27,9.5662]
[1770234866383,3.91046836,94.325,94.261,3.65062478]
[1770234867084,3.91046836,94.325,94.264,9.5667]
[1770234867486,3.91046836,94.325,94.261,3.65062478]
[1770234868391,3.91046836,94.309,94.197,3.65062478]
[1770234868983,9.5661,94.271,94.21,9.5722]
[1770234869179,3.91046836,94.277,94.197,3.65062478]
[1770234869481,3.91046836,94.287,94.225,9.5707]
[1770234869677,3.91046836,94.287,94.197,3.65062478]
[1770234870290,3.91046836,94.287,94.216,9.5716]
[1770234870681,3.91046836,94.287,94.197,3.65062478]
[1770234870886,3.91046836,94.287,94.224,9.5708]
[1770234871083,3.91046836,94.287,94.216,3.65062478]
[1770234871288,9.5655,94.277,94.216,3.65062478]
[1770234871491,3.91046836,94.287,94.216,3.65062478]
[1770234871894,3.91046836,94.287,94.223,9.5709]
[1770234872190,3.91046836,94.287,94.216,3.65062478]
[1770234872593,3.91046836,94.329,94.216,3.65062478]
[1770234873196,9.5635,94.297,94.234,9.5698]
[1770234873493,3.91046836,94.301,94.216,3.65062478]
[1770234873897,3.91046836,94.301,94.228,9.5704]
[1770234874089,3.91046836,94.301,94.229,3.65062478]
[1770234874491,3.91046836,94.301,94.209,3.65062478]
[1770234875195,9.5656,94.276,94.21,3.65062478]
[1770234875396,3.91046836,94.301,94.21,3.65062478]
[1770234875796,3.91046836,94.301,94.181,19.1503]
[1770234875797,9.5635,94.297,94.239,9.5693]
[1770234876290,3.91046836,94.301,94.232,3.65062478]
[1770234876692,9.5634,94.298,94.233,3.65062478]
[1770234877294,9.5634,94.298,94.241,9.5691]
[1770234877495,3.91046836,94.301,94.242,3.65062478]
[1770234877693,9.5624,94.307,94.242,3.65062478]
[1770234878393,3.91046836,94.32,94.242,3.65062478]
[1770234878394,9.5636,94.296,94.242,3.65062478]
[1770234878794,9.5636,94.296,94.246,9.5686]
[1770234879398,9.5627,94.305,94.25,3.65062478]
[1770234879697,3.91046836,94.32,94.221,3.65062478]
[1770234880997,3.91046836,94.302,94.236,3.65062478]
[1770234881394,148.6181,94.391,94.236,3.65062478]
[1770234881395,3.91046836,94.346,94.236,3.65062478]
[1770234881595,3.91046836,94.346,94.241,3.65062478]
[1770234881797,9.5614,94.317,94.262,9.5669]
[1770234881996,9.5614,94.317,94.241,3.65062478]
[1770234882795,3.91046836,94.325,94.241,3.65062478]
[1770234884702,3.91046836,94.325,94.257,9.5674]
[1770234885309,3.91046836,94.325,94.267,9.5665]
[1770234885705,3.91046836,94.325,94.259,3.65062478]
[1770234886202,3.91046836,94.325,94.275,9.5657]
[1770234886402,3.91046836,94.325,94.259,3.65062478]
[1770234887105,9.562,94.311,94.259,3.65062478]
[1770234887302,3.91046836,94.325,94.259,3.65062478]
[1770234889101,19.1114,94.374,94.259,3.65062478]
[1770234889102,3.91046836,94.323,94.259,3.65062478]
[1770234889811,3.91046836,94.323,94.267,9.5665]
[1770234890109,3.91046836,94.342,94.261,3.65062478]
[1770234890808,3.91046836,94.373,94.272,3.65062478]
[1770234891012,3.91046836,94.373,94.281,3.65062478]
[1770234892015,9.5589,94.342,94.285,9.5646]
[1770234892212,3.91046836,94.353,94.285,9.5646]
[1770234892713,9.5588,94.343,94.285,13.21522478]
[1770234893114,3.91046836,94.353,94.285,13.21522478]
[1770234893312,13.46916836,94.345,94.293,9.5638]
[1770234894807,3.88585808,94.344,94.262,3.58147518]
[1770234895814,9.5596,94.335,94.28,9.5652]
[1770234896516,19.1111,94.376,94.269,9.5663]
[1770234896517,9.5608,94.324,94.269,9.5663]
[1770234896719,148.6149,94.393,94.262,3.58147518]
[1770234896720,3.88585808,94.323,94.262,3.58147518]
[1770234896913,3.88585808,94.323,94.231,3.58147518]
[1770234897706,9.5629,94.302,94.231,3.58147518]
[1770234897914,3.88585808,94.323,94.231,3.58147518]
[1770234898314,9.563,94.302,94.249,9.5683]
[1770234898514,9.563,94.302,94.249,13.11899506]
[1770234899717,9.563,94.302,94.249,3.55069506]
[1770234899917,9.5641,94.291,94.249,3.55069506]
[1770234900219,3.68627239,94.29,94.214,19.21934864]
[1770234900512,3.68627239,94.266,94.186,3.55069506]
[1770234900716,3.68627239,94.266,94.165,3.55069506]
[1770234901112,9.5696,94.237,94.166,9.5767]
[1770234901307,3.68627239,94.264,94.167,3.55069506]
[1770234901515,3.68627239,94.264,94.194,3.55069506]
[1770234902221,3.68627239,94.264,94.207,9.5725]
[1770234902414,3.68627239,94.264,94.194,3.55069506]
[1770234903116,3.68627239,94.299,94.194,3.55069506]
[1770234904012,7.87950473,94.32,94.206,3.55069506]
[1770234904212,3.68627239,94.319,94.221,3.55069506]
[1770234904518,3.68627239,94.319,94.231,3.55069506]
[1770234904715,3.68627239,94.339,94.261,3.55069506]
[1770234904914,148.601,94.402,94.232,28.78754864]
[1770234904915,3.68627239,94.359,94.271,3.55069506]
[1770234905114,9.5573,94.358,94.284,9.5647]
[1770234905415,3.68627239,94.357,94.284,9.5647]
[1770234906115,3.68627239,94.35,94.272,3.55069506]
[1770234906308,3.68627239,94.35,94.253,3.55069506]
[1770234906821,3.68627239,94.35,94.276,3.55069506]
[1770234907417,9.5596,94.335,94.276,3.55069506]
[1770234908521,3.68627239,94.328,94.231,3.55069506]
[1770234908813,3.68627239,94.386,94.251,3.55069506]
[1770234909010,13.24487239,94.345,94.27,9.5661]
[1770234909210,13.24487239,94.345,94.27,13.11679506]
[1770234909521,3.68627239,94.345,94.271,3.55069506]
[1770234909819,3.68627239,94.366,94.271,3.55069506]
[1770234910421,3.68627239,94.366,94.23,7.90029997]
[1770234910422,3.68627239,94.366,94.305,9.5626]
[1770234910614,3.68627239,94.366,94.271,3.55069506]
[1770234910817,9.559,94.341,94.273,9.5659]
[1770234911119,3.68627239,94.366,94.271,3.55069506]
[1770234911523,9.5604,94.328,94.271,3.55069506]
[1770234911724,3.68627239,94.327,94.25,7.90029997]
[1770234912121,3.68627239,94.348,94.251,3.55069506]
[1770234912717,3.68627239,94.348,94.265,9.5667]
[1770234913223,3.68627239,94.348,94.251,3.55069506]
[1770234913419,9.5609,94.323,94.254,3.55069506]
[1770234913816,3.68627239,94.348,94.254,3.55069506]
[1770234914722,9.5596,94.335,94.264,3.55069506]
[1770234914922,13.24587239,94.335,94.264,3.55069506]
[1770234915517,3.68627239,94.325,94.25,7.90029997]
[1770234915723,3.68627239,94.325,94.243,3.55069506]
[1770234916322,9.5612,94.32,94.264,9.5667]
[1770234917520,3.68627239,94.315,94.212,9.64744864]
[1770234917824,9.5672,94.261,94.205,9.5728]
[1770234918229,3.68627239,94.272,94.203,3.55069506]
[1770234918525,3.68627239,94.313,94.215,3.55069506]
[1770234919121,7.90029997,94.33,94.215,3.55069506]
[1770234919122,9.5651,94.281,94.223,9.5709]
[1770234919323,3.68627239,94.29,94.215,3.55069506]
[1770234919726,3.68627239,94.29,94.232,9.57]
[1770234920327,9.563,94.302,94.241,9.5691]
[1770234920528,3.68627239,94.311,94.242,3.55069506]
[1770234920924,3.68627239,94.364,94.242,3.55069506]
[1770234921134,9.5608,94.324,94.242,3.55069506]
[1770234921323,3.68627239,94.331,94.242,3.55069506]
[1770234922133,3.68627239,94.331,94.24,7.90029997]
[1770234922134,3.68627239,94.331,94.245,3.55069506]
[1770234922430,3.68627239,94.379,94.284,9.5647]
[1770234922831,3.68627239,94.379,94.234,12.86326485]
[1770234922832,3.68627239,94.359,94.244,9.64744864]
[1770234923027,9.5627,94.305,94.243,9.5689]
[1770234923737,3.68627239,94.315,94.232,3.55069506]
[1770234924035,9.5617,94.314,94.259,9.5672]
[1770234924236,3.68627239,94.315,94.251,3.76742656]
[1770234925334,3.68627239,94.315,94.229,9.64744864]
[1770234925530,3.68627239,94.315,94.226,3.76742656]
[1770234925831,9.5643,94.289,94.228,9.5704]
[1770234926039,3.79104091,94.336,94.241,3.76742656]
[1770234926938,9.562,94.311,94.252,9.568]
[1770234927547,9.562,94.311,94.208,12.86326485]
[1770234927548,3.79104091,94.31,94.224,9.64744864]
[1770234927738,7.90029997,94.31,94.208,15.16806553]
[1770234928235,9.88894115,94.321,94.211,15.16806553]
[1770234928533,7.90029997,94.35,94.231,15.16806553]
[1770234928534,9.88894115,94.35,94.231,15.16806553]
[1770234928735,9.5606,94.326,94.236,9.5696]
[1770234928931,9.88894115,94.365,94.251,15.16806553]
[1770234929126,9.88894115,94.377,94.271,15.16806553]
[1770234929439,9.5574,94.357,94.274,15.16806553]
[1770234929825,9.88894115,94.382,94.274,15.16806553]
[1770234930028,7.90029997,94.38,94.252,15.22221449]
[1770234930232,9.88894115,94.377,94.252,15.22221449]
[1770234930430,83.3499568,94.399,94.252,15.22221449]
[1770234930735,83.3499568,94.399,94.188,19.29489728]
[1770234930736,5.578e-05,94.46,94.4,7.90029997]
[1770234931036,78.26152397,94.584,94.44,7.90029997]
[1770234931240,78.26152397,94.559,94.458,148.5111]
[1770234931432,78.26152397,94.559,94.43,148.5557]
[1770234931433,78.26152397,94.559,94.46,7.90029997]
[1770234931735,78.26152397,94.559,94.416,31.38999438]
[1770234931934,78.26152397,94.559,94.416,9.5513]
[1770234932139,78.26152397,94.559,94.41,7.90029997]
[1770234932329,78.26152397,94.529,94.39,7.90029997]
[1770234932533,78.26152397,94.529,94.411,9.5518]
[1770234933543,78.26152397,94.519,94.388,9.5541]
[1770234933728,78.26152397,94.519,94.348,461.06864354]
[1770234933729,78.26152397,94.499,94.36,7.90029997]
[1770234933928,78.26152397,94.495,94.36,7.90029997]
[1770234934130,78.26152397,94.495,94.362,9.5568]
[1770234934337,78.26152397,94.495,94.348,312.38514354]
[1770234934338,78.26152397,94.489,94.348,312.38514354]
[1770234934636,78.26152397,94.469,94.348,312.38514354]
[1770234935142,78.26152397,94.469,94.349,8.8922407]
[1770234935340,78.26152397,94.469,94.352,9.5578]
[1770234935529,78.26152397,94.469,94.353,8.8922407]
[1770234935734,78.26152397,94.469,94.354,8.8922407]
[1770234936038,78.26152397,94.469,94.355,8.8922407]
[1770234936337,78.26152397,94.469,94.356,8.8922407]
[1770234936536,78.26152397,94.469,94.357,8.8922407]
[1770234936737,78.26152397,94.469,94.37,7.90029997]
[1770234936938,78.26152397,94.469,94.371,18.4481407]
[1770234937138,78.26152397,94.469,94.372,8.8922407]
[1770234937439,78.26152397,94.469,94.373,8.8922407]
[1770234937630,73.91159055,94.446,94.31,7.90029997]
[1770234938241,73.91159055,94.446,94.332,9.5598]
[1770234938836,73.91159055,94.446,94.349,9.5581]
[1770234940244,73.91522696,94.442,94.333,9.5597]
[1770234940632,73.91522696,94.44,94.333,9.5597]
[1770234940838,73.91522696,94.429,94.317,9.5614]
[1770234941135,73.91522696,94.402,94.3,7.90029997]
[1770234942040,73.91522696,94.402,94.316,9.5615]
[1770234942440,73.91522696,94.402,94.244,148.8476]
[1770234942643,73.93630248,94.391,94.287,9.5644]
[1770234943836,73.93979721,94.381,94.287,9.5644]
[1770234944237,73.93979721,94.377,94.287,9.5644]
[1770234944737,73.93979721,94.377,94.3,9.5631]
[1770234946341,73.93144443,94.525,94.386,148.6244]
[1770234946544,73.93144443,94.525,94.42,7.90029997]
[1770234946942,73.93144443,94.519,94.4,7.90029997]
[1770234947143,73.93144443,94.519,94.39,7.90029997]
[1770234948246,83.47254443,94.519,94.417,9.5512]
[1770234948547,73.93144443,94.519,94.41,7.90029997]
[1770234949142,73.93144443,94.519,94.411,2.65060089]
[1770234949346,73.93144443,94.519,94.412,2.65060089]
[1770234949647,73.93144443,94.519,94.413,11.45245162]
[1770234949842,73.93144443,94.519,94.414,11.45245162]
[1770234950047,73.93144443,94.519,94.415,2.65060089]
[1770234950245,73.93144443,94.519,94.416,2.65060089]
[1770234950447,73.98262475,94.499,94.417,2.65060089]
[1770234950649,73.98262475,94.499,94.418,2.65060089]
[1770234950851,73.98262475,94.499,94.419,2.65060089]
[1770234951039,73.98262475,94.499,94.42,2.65060089]
[1770234951239,73.98262475,94.499,94.421,2.65060089]
[1770234951450,73.98262475,94.499,94.422,2.65140202]
[1770234951749,73.98262475,94.499,94.423,2.65140202]
[1770234951948,73.98262475,94.499,94.398,9.5531]
[1770234952248,73.98262475,94.499,94.409,9.5521]
[1770234952449,73.98262475,94.499,94.41,11.44689143]
[1770234952749,73.98262475,94.499,94.411,11.44674775]
[1770234952945,73.98262475,94.499,94.412,2.65140019]
[1770234953250,74.00410066,94.49,94.413,2.65140019]
[1770234953544,74.00410066,94.49,94.414,2.65140019]
[1770234953751,74.00410066,94.49,94.415,2.65140019]
[1770234953952,74.00410066,94.49,94.416,2.65140019]
[1770234954254,74.00410066,94.49,94.417,2.65140019]
[1770234954451,74.00410066,94.49,94.418,2.65140019]
[1770234954652,74.00410066,94.49,94.419,2.65140019]
[1770234954846,74.00410066,94.49,94.397,9.5533]
[1770234955047,74.00410066,94.49,94.401,9.5528]
[1770234955246,74.00410066,94.49,94.402,2.65134468]
[1770234955446,74.00410066,94.49,94.403,2.65134468]
[1770234955749,74.00410066,94.49,94.404,2.65134468]
[1770234955947,74.00410066,94.49,94.405,2.65134468]
[1770234956152,74.00410066,94.49,94.406,2.65134468]
[1770234956344,73.97713373,94.486,94.407,2.65134468]
[1770234956646,73.97713373,94.486,94.408,2.65134468]
[1770234956848,73.97713373,94.486,94.409,2.65134468]
[1770234957049,73.97713373,94.486,94.411,9.5518]
[1770234957255,73.97713373,94.486,94.412,2.65134468]
[1770234957449,73.97713373,94.486,94.413,2.65134468]
[1770234957656,73.97713373,94.486,94.417,9.5512]
[1770234957856,73.97713373,94.486,94.418,2.65134468]
[1770234958049,73.97713373,94.486,94.419,2.65106886]
[1770234958354,73.97713373,94.486,94.413,9.5516]
[1770234958557,73.97713373,94.486,94.414,2.65130024]
[1770234958752,73.97713373,94.486,94.415,2.65130024]
[1770234958951,73.97713373,94.486,94.416,2.65130024]
[1770234959157,73.97713373,94.486,94.417,2.65130024]
[1770234959350,73.97713373,94.486,94.418,11.43796249]
[1770234959654,73.97713373,94.486,94.419,11.43796249]
[1770234959855,73.97713373,94.486,94.42,11.43796249]
[1770234960056,73.97713373,94.486,94.421,11.43796249]
[1770234960253,73.97713373,94.486,94.422,11.43796249]
[1770234960454,73.97713373,94.486,94.437,9.5492]
[1770234960655,73.97713373,94.486,94.438,11.4337447]
[1770234960853,73.97713373,94.486,94.4,7.90029997]
[1770234960854,73.97713373,94.486,94.439,2.65130024]
[1770234961050,9.5392,94.537,94.44,2.65029066]
[1770234961252,73.97704014,94.536,94.441,11.43136253]
[1770234961456,73.97704014,94.536,94.442,11.43136253]
[1770234961651,73.98229223,94.511,94.443,11.43136253]
[1770234961849,68.26661096,94.499,94.37,7.90029997]
[1770234962161,77.80961096,94.499,94.39,7.90029997]
[1770234962652,77.80961096,94.499,94.43,9.5499]
[1770234963254,77.80961096,94.499,94.419,9.551]
[1770234963556,77.80961096,94.499,94.36,12.7583648]
[1770234963557,68.26661096,94.486,94.35,7.90029997]
[1770234963856,68.25823973,94.469,94.35,7.90029997]
[1770234964058,68.25823973,94.449,94.33,7.90029997]
[1770234964364,7.90029997,94.47,94.295,12.7583648]
[1770234964365,68.25823973,94.409,94.295,12.7583648]
[1770234964554,68.25823973,94.409,94.27,7.8926935]
[1770234965155,68.25823973,94.404,94.301,9.563]
[1770234965353,68.25823973,94.389,94.25,7.8926935]
[1770234965554,7.8926935,94.37,94.25,7.8926935]
[1770234965758,68.42475033,94.366,94.2,12.7583648]
[1770234966065,68.42475033,94.349,94.22,7.8926935]
[1770234966257,58.43113814,94.347,94.236,9.5696]
[1770234966554,48.87273814,94.329,94.236,9.5696]
[1770234966758,48.87273814,94.329,94.2,7.8926935]
[1770234966955,148.6435,94.375,94.221,9.5711]
[1770234966956,48.87273814,94.309,94.221,9.5711]
[1770234967355,48.84142358,94.307,94.206,9.5726]
[1770234967756,148.6733,94.356,94.179,408.83483535]
[1770234967757,48.84142358,94.289,94.179,408.83483535]
[1770234967956,48.84142358,94.289,94.191,9.5741]
[1770234968862,48.84142358,94.287,94.191,9.5741]
[1770234969256,48.84142358,94.285,94.179,408.83483535]
[1770234969562,48.82122073,94.269,94.13,7.8926935]
[1770234969759,48.82122073,94.249,94.13,7.8926935]
[1770234970065,48.82122073,94.243,94.11,7.8926935]
[1770234970361,48.82122073,94.241,94.133,9.58]
[1770234971360,48.82122073,94.241,94.149,9.5784]
[1770234971760,48.82122073,94.241,94.13,7.8926935]
[1770234971960,48.82122073,94.241,94.15,7.8926935]
[1770234972159,48.8172721,94.266,94.17,7.8926935]
[1770234973361,48.8172721,94.266,94.183,9.575]
[1770234973767,48.8172721,94.266,94.184,2.65747771]
[1770234973967,48.8172721,94.266,94.185,2.65747771]
[1770234974163,48.8172721,94.266,94.187,9.5746]
[1770234974664,48.88412946,94.262,94.168,9.5765]
[1770234974862,48.88412946,94.262,94.13,7.8926935]
[1770234975167,148.7644,94.298,94.131,2.65806726]
[1770234975168,48.88412946,94.249,94.131,2.65806726]
[1770234975466,48.88412946,94.249,94.151,9.5782]
[1770234975765,48.88412946,94.249,94.152,2.65806726]
[1770234975967,48.88412946,94.249,94.153,2.65806726]
[1770234976158,48.88412946,94.249,94.154,2.65806726]
[1770234976364,48.88412946,94.249,94.16,9.5773]
[1770234976565,48.88412946,94.249,94.161,2.65787015]
[1770234976760,48.88412946,94.249,94.13,7.8926935]
[1770234976966,48.88412946,94.249,94.131,2.65787878]
[1770234977166,48.88412946,94.249,94.132,2.65787878]
[1770234977366,48.88412946,94.249,94.133,2.65787878]
[1770234977568,48.88412946,94.249,94.163,9.577]
[1770234977963,48.89036274,94.229,94.11,7.8926935]
[1770234978270,48.89036274,94.211,94.111,2.65843093]
[1770234978473,9.5721,94.212,94.08,7.8926935]
[1770234978474,48.89036274,94.209,94.08,7.8926935]
[1770234978670,48.89036274,94.209,94.081,2.65938173]
[1770234978871,48.89036274,94.209,94.082,2.65938173]
[1770234979067,48.89036274,94.209,94.083,2.65938173]
[1770234979272,48.89036274,94.209,94.06,31.8]
[1770234979273,148.6332,94.381,94.2,7.8926935]
[1770234979565,445.6438,94.435,94.122,447.1236]
[1770234979566,53.67641274,94.371,94.232,148.8676]
[1770234979765,53.67599833,94.369,94.235,148.8631]
[1770234979966,53.67599833,94.369,94.26,7.8926935]
[1770234980163,53.67599833,94.369,94.261,2.65938173]
[1770234980362,53.67599833,94.359,94.262,2.65938173]
[1770234980569,53.67599833,94.359,94.251,9.5681]
[1770234981072,53.67599833,94.359,94.22,7.8926935]
[1770234981073,53.67599833,94.339,94.2,7.8926935]
[1770234981272,53.67599833,94.339,94.22,7.8926935]
[1770234981474,53.67599833,94.339,94.221,2.65604452]
[1770234981678,53.67599833,94.339,94.222,2.65604452]
[1770234981874,53.67599833,94.339,94.223,2.65604452]
[1770234982074,53.67599833,94.339,94.224,2.65604452]
[1770234982378,53.67599833,94.339,94.251,9.5681]
[1770234982577,53.67599833,94.339,94.252,2.65604452]
[1770234982774,53.67599833,94.339,94.251,9.5681]
[1770234983276,53.61856195,94.337,94.232,9.57]
[1770234983577,53.61856195,94.337,94.233,2.65565879]
[1770234983769,53.61856195,94.337,94.239,9.5692]
[1770234983972,53.61856195,94.337,94.24,2.65565879]
[1770234984169,53.61856195,94.337,94.241,2.65565879]
[1770234984479,53.61856195,94.337,94.245,9.5687]
[1770234984679,53.61856195,94.337,94.246,2.65565879]
[1770234984878,53.61856195,94.337,94.248,9.5684]
[1770234985178,53.61856195,94.337,94.249,2.65565879]
[1770234985379,53.61856195,94.337,94.25,2.65565879]
[1770234985678,53.61856195,94.337,94.251,2.65565879]
[1770234985878,53.61856195,94.337,94.252,2.65565879]
[1770234986072,53.61856195,94.337,94.274,9.5657]
[1770234987275,53.56091184,94.377,94.288,9.5643]
[1770234987871,53.56247215,94.37,94.288,9.5643]
[1770234988478,53.56247215,94.368,94.288,9.5643]
[1770234990184,53.56247215,94.368,94.301,9.563]
[1770234990491,53.56247215,94.368,94.28,7.8926935]
[1770234990985,53.56247215,94.368,94.312,9.5618]
[1770234991887,53.56247215,94.368,94.3,9.5631]
[1770234992085,53.56247215,94.368,94.245,148.8472]
[1770234992086,53.56247215,94.368,94.235,148.8617]
[1770234992393,53.56247215,94.368,94.26,7.8926935]
[1770234993297,53.53511619,94.366,94.261,2.65468638]
[1770234993589,53.53511619,94.366,94.262,2.65468638]
[1770234993789,53.53511619,94.366,94.263,2.65468638]
[1770234994090,53.53511619,94.366,94.26,7.8926935]
[1770234994292,53.53511619,94.366,94.261,2.65467938]
[1770234994491,53.53511619,94.366,94.262,2.65467938]
[1770234994794,53.53511619,94.366,94.295,9.5636]
[1770234996191,53.53511619,94.366,94.26,7.8926935]
[1770234996388,53.53511619,94.366,94.306,9.5625]
[1770234996588,53.53017872,94.389,94.28,7.8926935]
[1770234996791,53.53017872,94.389,94.281,2.65427509]
[1770234997090,53.53017872,94.389,94.282,2.65427509]
[1770234997294,53.53017872,94.389,94.283,2.65427509]
[1770234997487,53.53017872,94.389,94.32,9.561]
[1770235000594,53.53017872,94.389,94.282,19.1299]
[1770235000795,53.53017872,94.389,94.3,7.8926935]
[1770235001098,53.53017872,94.389,94.301,2.65388142]
[1770235001298,53.53017872,94.389,94.302,2.65388142]
[1770235001497,53.53017872,94.389,94.343,9.5587]
[1770235002096,53.53017872,94.389,94.282,19.1299]
[1770235002292,53.53017872,94.389,94.283,2.65408936]
[1770235002492,53.53017872,94.389,94.284,2.65408936]
[1770235002694,53.48620741,94.385,94.285,2.65408936]
[1770235002896,53.48620741,94.385,94.286,2.65408936]
[1770235003095,53.48620741,94.385,94.287,2.65408936]
[1770235003296,53.48620741,94.385,94.288,2.65408936]
[1770235003498,53.48620741,94.383,94.318,9.5612]
[1770235003694,53.48620741,94.383,94.26,7.8926935]
[1770235003996,53.48002511,94.318,94.2,7.8926935]
[1770235004697,53.48002511,94.318,94.253,9.5678]
[1770235005001,53.48002511,94.318,94.22,7.8926935]
[1770235005594,53.48002511,94.318,94.202,19.1461]
[1770235006300,63.04142511,94.318,94.248,9.5683]
[1770235007099,63.04142511,94.318,94.2,7.8926935]
[1770235007100,53.54734162,94.306,94.2,7.8926935]
[1770235007300,53.54734162,94.306,94.201,7.84416382]
[1770235007503,53.54734162,94.306,94.202,7.84416382]
[1770235007801,53.54734162,94.306,94.2,7.8926935]
[1770235007997,7.8926935,94.33,94.2,7.8926935]
[1770235008200,7.8926935,94.33,94.14,20.68138485]
[1770235008201,148.4413,94.503,94.34,7.8926935]
[1770235008498,78.37650997,94.488,94.339,148.6987]
[1770235008702,78.37650997,94.488,94.36,39.6926935]
[1770235009000,78.37650997,94.488,94.377,9.5553]
[1770235009191,78.37650997,94.488,94.35,7.8926935]
[1770235009392,87.92160997,94.479,94.362,9.5568]
[1770235009599,78.37650997,94.479,94.363,7.81934681]
[1770235009802,78.37650997,94.479,94.35,7.8926935]
[1770235009992,78.37650997,94.479,94.365,9.5565]
[1770235011305,87.92160997,94.479,94.365,9.5565]
[1770235011799,78.37650997,94.479,94.365,9.5565]
[1770235011996,78.37650997,94.479,94.384,9.5546]
[1770235013302,78.37650997,94.479,94.363,9.5567]
[1770235014006,78.37650997,94.479,94.337,148.7015]
[1770235014007,78.37650997,94.479,94.383,9.5547]
[1770235014411,78.37650997,94.479,94.372,148.6456]
[1770235014612,78.37650997,94.479,94.4,9.553]
[1770235015403,78.37650997,94.479,94.365,148.6576]
[1770235015604,78.37650997,94.479,94.374,148.6434]
[1770235015804,78.37650997,94.479,94.379,148.6346]
[1770235016004,78.37650997,94.479,94.416,9.5514]
[1770235016508,78.37650997,94.479,94.428,9.5501]
[1770235016713,78.2245293,94.502,94.401,148.6007]
[1770235017516,78.2245293,94.502,94.392,148.6145]